fUSD/lending_fUSD_20240708
["ID","MTS","AMOUNT","RATE_DAILY","PERIOD"]
[331544028,1720475457559,-881.070905,0.00031798,93]
[331544029,1720475457569,-151.0,0.00031798,7]
[331544030,1720475457579,-151.0,0.00031798,7]
[331544031,1720475457588,-151.0,0.00031798,7]
[331544032,1720475457597,-151.0,0.00031798,7]
[331544033,1720475457606,-151.0,0.00031798,7]
[331544034,1720475457616,-1000.0,0.000318,2]
[331544035,1720475457626,-166.66666667,0.00031834,7]
[331544036,1720475457636,-172.7089355,0.00031834,7]
[331544037,1720475457645,-569.53970398,0.00031838,7]
[331544038,1720475457655,-2000.0,0.0003184,2]
[331544039,1720475457665,-2000.0,0.0003184,2]
[331544040,1720475457674,-157.14,0.00031881,2]
[331544041,1720475457683,-166.66666666,0.00031894,7]
[331544042,1720475457693,-2000.0,0.000319,6]
[331544043,1720475457702,-258.0,0.000319,4]
[331544044,1720475457712,-516.0,0.000319,4]
[331544045,1720475457721,-1847.59883518,0.00031938,7]
[331544046,1720475457731,-160.54776831,0.0003196,7]
[331544047,1720475457740,-151.0,0.0003199,7]
[331544048,1720475457758,-257.800534,0.0003199,7]
[331544049,1720475457767,-257.800534,0.0003199,7]
[331544050,1720475457776,-151.0,0.0003199,7]
[331544051,1720475457785,-151.0,0.0003199,7]
[331544052,1720475457796,-151.0,0.0003199,7]
[331544053,1720475457808,-151.0,0.0003199,7]
[331544054,1720475457817,-151.0,0.0003199,7]
[331544055,1720475457825,-151.0,0.0003199,7]
[331544056,1720475457834,-151.0,0.0003199,7]
[331544057,1720475457843,-151.0,0.0003199,7]
[331544058,1720475457852,-411.935072,0.0003199,7]
[331544059,1720475457861,-151.0,0.0003199,7]
[331544060,1720475457870,-151.0,0.0003199,7]
[331544061,1720475457878,-151.0,0.0003199,7]
[331544062,1720475457887,-151.0,0.0003199,7]
[331544063,1720475457897,-151.0,0.0003199,7]
[331544064,1720475457907,-151.0,0.0003199,7]
[331544065,1720475457917,-535.83397672,0.00032,120]
[331544066,1720475457927,-3600.0,0.00032,33]
[331544067,1720475457936,-158.56507739,0.00032,120]
[331544068,1720475457950,-498.68909125,0.00032,120]
[331544069,1720475457960,-400.0,0.00032,120]
[331544070,1720475457970,-261.31963977,0.00032,120]
[331544072,1720475715752,1267.47551598,0.00011199,2]
[331544073,1720475776270,181.26889161,0.00011199,2]
[331544074,1720475795725,18793.85396765,0.00011199,2]
[331544075,1720475796480,411.80975373,0.00011199,2]
[331544076,1720475840127,524.6389317,0.00011199,2]
[331544077,1720475853662,406.04344734,0.00011199,2]
[331544078,1720475872275,180.96311449,0.00011199,2]
[331544079,1720475882227,18793.85396765,0.00011199,2]
[331544080,1720475887570,411.80975373,0.00011199,2]
[331544081,1720475907548,155.0,0.00011199,4]
[331544082,1720475910508,227.24934482,0.00011199,2]
[331544083,1720475926083,227.24934482,0.00011199,2]
[331544084,1720475966007,208.79830054,0.00011199,2]
[331544085,1720475980004,232.12480952,0.00011199,2]
[331544086,1720475984227,2075.95279776,0.00011199,2]
[331544087,1720475999229,2075.95279776,0.00011199,2]
[331544088,1720476000721,4457.9797839,0.00011199,2]
[331544089,1720476029829,1983.97341097,0.00011199,2]
[331544090,1720476071658,155.0,0.00011199,2]
[331544096,1720476277141,626.96699205,0.00011199,2]
[331544097,1720476279503,155.72385129,0.00011199,2]
[331544098,1720476302142,524.3740187,0.00011199,2]
[331544109,1720476374359,227.24934482,0.00011199,2]
[331544115,1720476469436,224.40399861,0.00011199,2]
[331544120,1720476501786,438.49798576,0.00011199,2]
[331544122,1720476513678,155.0,0.00011199,2]
[331544123,1720476518511,485.24402982,0.00011199,2]
[331544126,1720476548584,208.79830054,0.00011199,2]
[331544133,1720476632181,-633.6425639,0.00012726,2]
[331544137,1720476632552,-5669.67267634,0.00012726,2]
[331544139,1720476632564,-1591.19094563,0.00012726,2]
[331544142,1720476632579,-227.24934482,0.00013128,2]
[331544144,1720476632593,-366.37752863,0.00013516,2]
[331544147,1720476632603,-208.79830054,0.00013574,2]
[331544149,1720476632613,-327.50694654,0.00015,2]
[331544151,1720476632622,-44.77391944,0.00017259,2]
[331544153,1720476632635,-255.22608056,0.00017259,2]
[331544154,1720476632644,-162.53,0.0001746,2]
[331544155,1720476632652,-259.07,0.00017512,2]
[331544156,1720476632662,-3806.51322823,0.00017533,2]
[331544157,1720476632671,-506.0,0.000177,2]
[331544158,1720476632679,-3971.3553682,0.00017807,2]
[331544159,1720476632688,-370.90972778,0.00018,2]
[331544160,1720476632697,-499.99,0.00018,2]
[331544161,1720476632707,-2128.38,0.00018,2]
[331544162,1720476632715,-279.52745525,0.00018739,2]
[331544163,1720476632727,-89.65547516,0.00018739,2]
[331544164,1720476632735,-392.33306962,0.00018759,2]
[331544165,1720476632747,-1184.04223048,0.00018759,2]
[331544166,1720476632758,-698.70722335,0.00018835,2]
[331544167,1720476632768,-155.0,0.00018899,2]
[331544168,1720476632778,-685.29662423,0.00018919,2]
[331544169,1720476632787,-155.0,0.00018999,2]
[331544170,1720476632796,-297.10016383,0.00018999,2]
[331544171,1720476632806,-269.33048208,0.00018999,2]
[331544172,1720476632815,-4202.50613224,0.00019,2]
[331544173,1720476632827,-797.49386776,0.00019,2]
[331544174,1720476632838,-9870.95039092,0.00019,2]
[331544175,1720476632849,-3018.35960908,0.00019,2]
[331544176,1720476632858,-1405.44946896,0.000192,7]
[331544177,1720476632869,-508.75222335,0.000192,7]
[331544178,1720476632878,-285.35,0.00019909,2]
[331544179,1720476632887,-225.43058031,0.00021,2]
[331544180,1720476632896,-11062.46228413,0.0002107,2]
[331544351,1720476640716,-208.79830054,0.00013543,2]
[331544353,1720476640736,-479.55169946,0.0002107,2]
[331544355,1720476640758,-394.31761047,0.0002107,2]
[331544357,1720476640785,-1443.26152,0.0002107,2]
[331544359,1720476640811,-6343.97694438,0.0002107,2]
[331544362,1720476640835,-864.30091839,0.0002107,2]
[331544364,1720476640861,-2366.07284405,0.0002107,2]
[331544366,1720476640886,-4186.27582778,0.0002107,2]
[331544368,1720476640903,-404.64145571,0.0002107,2]
[331544370,1720476640915,-616.38,0.0002107,2]
[331544373,1720476640932,-15136.389238,0.0002107,2]
[331544375,1720476640941,-318.63,0.0002149,2]
[331544377,1720476640951,-250.0,0.00021561,2]
[331544379,1720476640961,-6284.03762925,0.00021566,2]
[331544381,1720476640971,-1163.4179,0.00021623,2]
[331544383,1720476640981,-535.57,0.00021644,2]
[331544385,1720476640991,-465.66974285,0.00021808,2]
[331544388,1720476641001,-589.94,0.00021918,2]
[331544390,1720476641012,-156.7,0.00021919,2]
[331544392,1720476641024,-122.27983128,0.00022098,2]
[331544394,1720476641036,-1365.99582488,0.00022098,2]
[331544396,1720476641046,-200.0,0.00022106,2]
[331544398,1720476641056,-187.01157171,0.00022134,2]
[331544400,1720476641065,-1178.87155341,0.00022142,2]
[331544408,1720476641129,-271.7099987,0.00018816,2]
[331544410,1720476641142,-571.61863789,0.00018816,2]
[331544412,1720476641153,-258.26659757,0.00018816,2]
[331544414,1720476641165,-3.5279744,0.00018816,2]
[331544416,1720476641175,-98.53248403,0.00022142,2]
[331544419,1720476641185,-926.38254157,0.00022142,2]
[331544421,1720476641196,-2248.73571684,0.00022142,2]
[331544423,1720476641206,-1277.40403744,0.00022142,2]
[331544425,1720476641216,-285.35,0.00022172,2]
[331544427,1720476641227,-187.01157171,0.00022181,2]
[331544429,1720476641236,-793.55353201,0.00022191,2]
[331544431,1720476641245,-2020.40384023,0.00022211,2]
[331544433,1720476641254,-187.01157171,0.00022212,2]
[331544435,1720476641263,-717.16761484,0.00022222,2]
[331544437,1720476641273,-616.63744864,0.00022222,2]
[331544439,1720476641283,-868.44671232,0.00022222,2]
[331544441,1720476641292,-187.01157171,0.00022284,2]
[331544443,1720476641301,-187.01157171,0.00022284,2]
[331544444,1720476641310,-188.35612588,0.00022294,2]
[331544445,1720476641319,-187.01157171,0.00022402,2]
[331544446,1720476641328,-187.01157171,0.00022402,2]
[331544447,1720476641338,-1578.08107816,0.00022412,2]
[331544448,1720476641349,-1269.33892184,0.00022412,2]
[331544449,1720476641358,-187.01157171,0.00022479,2]
[331544451,1720476641367,-161.18,0.00022559,30]
[331544453,1720476641376,-250.0,0.00022635,2]
[331544455,1720476641386,-250.0,0.00022721,2]
[331544457,1720476641395,-187.01157171,0.00022869,2]
[331544459,1720476641404,-1000.0,0.00022879,2]
[331544461,1720476641413,-187.01157171,0.00022959,2]
[331544463,1720476641422,-187.01157171,0.00022959,2]
[331544465,1720476641431,-187.01157171,0.00022969,2]
[331544467,1720476641440,-187.01157171,0.00022969,2]
[331544469,1720476641450,-187.01157171,0.00022969,2]
[331544471,1720476641459,-187.01157171,0.00022969,2]
[331544473,1720476641468,-187.01157171,0.00022969,2]
[331544475,1720476641477,-187.01157171,0.00022969,2]
[331544477,1720476641486,-187.01157171,0.00022969,2]
[331544480,1720476641495,-187.01157171,0.00022969,2]
[331544482,1720476641505,-187.01157171,0.00022969,2]
[331544484,1720476641514,-187.01157171,0.00022969,2]
[331544486,1720476641523,-187.01157171,0.00022969,2]
[331544487,1720476641532,-187.01157171,0.00022969,2]
[331544489,1720476641541,-187.01157171,0.00022969,2]
[331544491,1720476641550,-187.01157171,0.00022969,2]
[331544493,1720476641559,-187.01157171,0.00022969,2]
[331544496,1720476641569,-187.01157171,0.00022969,2]
[331544498,1720476641579,-530.55,0.00022969,3]
[331544500,1720476641588,-1754.29591647,0.00022979,2]
[331544502,1720476641600,-1301.90749695,0.00022979,2]
[331544504,1720476641611,-2776.36303042,0.00022979,2]
[331544506,1720476641622,-16860.2388468,0.00022979,2]
[331544509,1720476641637,-1207.19470936,0.00022979,2]
[331544511,1720476641646,-200.0,0.00023,2]
[331544513,1720476641655,-168.86,0.00023036,2]
[331544515,1720476641665,-187.01157171,0.00023046,2]
[331544517,1720476641674,-1502.17,0.00023056,2]
[331544519,1720476641684,-187.01157171,0.00023079,2]
[331544521,1720476641693,-157.14,0.00023089,2]
[331544523,1720476641702,-341.01843583,0.00023145,2]
[331544526,1720476641713,-158.98156417,0.00023145,2]
[331544528,1720476641722,-2891.30127757,0.000233,2]
[331544530,1720476641735,-720.69872243,0.000233,2]
[331544532,1720476641744,-2092.42714952,0.00023368,2]
[331544535,1720476641766,-187.01157171,0.0002329,2]
[331544537,1720476641776,-2248.37610628,0.00023368,2]
[331544539,1720476641787,-1765.5,0.00023368,2]
[331544541,1720476641799,-3310.30765838,0.00023368,2]
[331544544,1720476641811,-152.38908582,0.00023368,2]
[331544546,1720476641821,-1004.35,0.00023368,2]
[331544548,1720476641830,-170.67,0.00023642,2]
[331544549,1720476641839,-1927.33599983,0.00023999,2]
[331544551,1720476641850,-180.0,0.00024079,2]
[331544553,1720476641859,-285.35,0.00024436,2]
[331544556,1720476641869,-500.0,0.00024932,15]
[331544558,1720476641878,-3000.0,0.00024932,2]
[331544559,1720476641887,-225.60259739,0.00025,2]
[331544561,1720476641896,-326.60332768,0.00025,2]
[331544563,1720476641906,-932.12365454,0.00025,2]
[331544565,1720476641915,-669.21960628,0.00025,30]
[331544567,1720476641924,-289.33001581,0.00025,2]
[331544569,1720476641934,-1150.16571265,0.00025,2]
[331544572,1720476641950,-833.93203898,0.00025,2]
[331544574,1720476641959,-581.61898449,0.00025205,2]
[331544745,1720476643259,-187.01157171,0.0002329,2]
[331544748,1720476643269,-187.01157171,0.0002329,2]
[331544751,1720476643278,-226.3971819,0.00023299,2]
[331544757,1720476643304,-139.70759732,0.00023299,2]
[331544760,1720476643313,-187.01157171,0.00023358,2]
[331544763,1720476643322,-187.01157171,0.00023358,2]
[331544766,1720476643331,-187.01157171,0.00023358,2]
[331544768,1720476643340,-187.01157171,0.00023358,2]
[331544770,1720476643348,-187.01157171,0.00023358,2]
[331544772,1720476643357,-187.01157171,0.00023358,2]
[331544773,1720476643366,-187.01157171,0.00023358,2]
[331544774,1720476643375,-55.7645585,0.00023622,2]
[331544775,1720476643386,-131.24701321,0.00023622,2]
[331544776,1720476643396,-187.01157171,0.00023989,2]
[331544777,1720476643404,-290.79282049,0.00025205,2]
[331544836,1720476643956,-127.58819502,0.00025205,2]
[331544838,1720476643965,-168.54623833,0.000253,10]
[331544841,1720476643985,-187.01157171,0.00024426,2]
[331544843,1720476643995,-111.45376167,0.000253,10]
[331544845,1720476644004,-567.62756953,0.000255,5]
[331544848,1720476644015,-617.72856949,0.000255,5]
[331544851,1720476644030,-485.29999995,0.000255,5]
[331544854,1720476644052,-187.01157171,0.00024922,2]
[331544856,1720476644061,-499.56372969,0.000255,5]
[331544858,1720476644072,-4445.23740939,0.000255,5]
[331544860,1720476644084,-605.70812265,0.000255,5]
[331544861,1720476644095,-668.90836217,0.000255,5]
[331544862,1720476644106,-450.0,0.000255,5]
[331544863,1720476644116,-3145.92623713,0.000255,5]
[331544864,1720476644125,-322.1944712,0.00025739,2]
[331544865,1720476644136,-677.8055288,0.00025739,2]
[331544866,1720476644145,-1250.0,0.00026,2]
[331544867,1720476644154,-150.0,0.00026079,2]
[331544868,1720476644163,-262.1944712,0.000266,2]
[331544869,1720476644173,-772.1299993,0.000266,2]
[331544870,1720476644184,-716.30002,0.000266,2]
[331544871,1720476644195,-749.3755095,0.000266,2]
[331544872,1720476644204,-285.35,0.000267,2]
[331544873,1720476644212,-176.27662494,0.00026777,2]
[331544874,1720476644223,-348.04079335,0.00026777,2]
[331544875,1720476644234,-105.68258171,0.00026777,2]
[331544876,1720476644243,-4823.45316989,0.00026777,28]
[331544877,1720476644252,-500.0,0.00026866,2]
[331544878,1720476644261,-200.0,0.00026866,2]
[331544879,1720476644270,-9384.34,0.00027397,10]
[331544880,1720476644279,-616.845078,0.00027662,120]
[331544882,1720476644288,-535.57,0.00027714,2]
[331544884,1720476644300,-298.0,0.0002783,15]
[331544886,1720476644309,-189.29018,0.00027859,120]
[331544888,1720476644317,-3000.0,0.00028113,120]
[331544890,1720476644327,-500.0,0.00028262,120]
[331544892,1720476644335,-500.0,0.00028506,120]
[331544894,1720476644344,-1000.0,0.00028598,2]
[331544896,1720476644353,-500.0,0.00028862,120]
[331544898,1720476644362,-285.35,0.00028964,2]
[331544900,1720476644371,-500.0,0.00029153,120]
[331544902,1720476644381,-2500.0,0.000293,2]
[331544904,1720476644390,-19537.46536696,0.0002949,4]
[331544906,1720476644401,-30756.22282231,0.0002949,4]
[331544908,1720476644412,-1050.66990547,0.0002949,4]
[331544910,1720476644423,-2093.79820878,0.0002949,4]
[331544913,1720476644435,-747.85523931,0.0002949,4]
[331544948,1720476646494,-366.37752863,0.00013472,2]
[331544949,1720476646504,-187.01157171,0.00024922,2]
[331544950,1720476646513,-187.01157171,0.0002498,2]
[331544951,1720476646523,-187.01157171,0.0002499,2]
[331544952,1720476646532,-187.01157171,0.0002499,2]
[331544953,1720476646541,-187.01157171,0.0002508,2]
[331544954,1720476646550,-187.01157171,0.0002529,2]
[331544955,1720476646560,-187.01157171,0.0002569,2]
[331544956,1720476646570,-187.01157171,0.0002569,2]
[331544957,1720476646580,-187.01157171,0.0002569,2]
[331544958,1720476646589,-187.01157171,0.0002569,2]
[331544959,1720476646599,-119.93721344,0.0002569,2]
[331544960,1720476646611,-67.07435827,0.0002569,2]
[331544961,1720476646620,-187.01157171,0.0002569,2]
[331544962,1720476646630,-603.12307284,0.0002949,4]
[331544963,1720476646830,-3499.87252233,0.0002949,4]
[331544964,1720476646842,-5780.45101238,0.000295,2]
[331544965,1720476646853,-46128.77761372,0.000295,2]
[331544966,1720476646865,-440.29978316,0.000295,2]
[331544967,1720476646876,-734.02466279,0.000295,2]
[331544968,1720476646887,-895.73293621,0.000295,2]
[331544969,1720476646898,-2910.55810647,0.000295,2]
[331544970,1720476646911,-890.2,0.000295,2]
[331544971,1720476646922,-1356.9970628,0.000295,2]
[331544972,1720476646935,-575.86654293,0.000295,2]
[331544973,1720476646950,-187.01157171,0.0002569,2]
[331544974,1720476646959,-132.30558822,0.000295,2]
[331544975,1720476646970,-344.65771857,0.000295,2]
[331544977,1720476646981,-3207.21499114,0.000295,2]
[331544979,1720476646992,-2540.00425528,0.000295,2]
[331544982,1720476647003,-371.97579158,0.000295,2]
[331544986,1720476852323,160.36,0.00025507,120]
[331545149,1720477724352,224.86686728,0.00027,120]
[331545152,1720477799833,2000.0,0.00027,120]
[331545175,1720477832468,-839.43706326,0.00017807,2]
[331545195,1720477835020,-350.0,0.00017807,2]
[331545196,1720477835031,-1691.00488011,0.00017807,2]
[331545197,1720477835041,-2832.49115848,0.00018835,2]
[331545198,1720477835051,-379.18002137,0.00018899,2]
[331545199,1720477835061,-528.93489931,0.00018919,2]
[331545200,1720477835070,-208.79830054,0.00018919,2]
[331545201,1720477835080,-1000.0,0.00018999,2]
[331545202,1720477835090,-369.58418394,0.00018999,2]
[331545203,1720477835099,-195.49838842,0.00018999,2]
[331545204,1720477835108,-231.76308073,0.00018999,2]
[331545205,1720477835120,-29.30254044,0.00018999,2]
[331545206,1720477835129,-306.62685948,0.00019,2]
[331545207,1720477835141,-348.89010204,0.00019,2]
[331545208,1720477835155,-291.505,0.00019,2]
[331545209,1720477835166,-818.82444517,0.00019,2]
[331545210,1720477835177,-757.13168339,0.00019,2]
[331545211,1720477835189,-334.50747262,0.00019,2]
[331545212,1720477835200,-399.12662878,0.00019,2]
[331545213,1720477835212,-1743.38780852,0.00019,2]
[331545214,1720477835221,-227.24934482,0.00019069,2]
[331545215,1720477835233,-297.10016383,0.00019077,2]
[331545216,1720477835243,-367.56060313,0.00019177,2]
[331545217,1720477835252,-500.0,0.000192,7]
[331545218,1720477835262,-1000.0,0.00019353,2]
[331545219,1720477835272,-3110.75746026,0.00019354,2]
[331545220,1720477835282,-499.99,0.00019389,2]
[331545221,1720477835291,-200.06117257,0.00019399,2]
[331545222,1720477835302,-104.56157912,0.00019399,2]
[331545223,1720477835311,-3362.13842088,0.00019565,2]
[331545224,1720477835322,-12660.81157912,0.00019565,2]
[331545225,1720477835331,-1247.72529133,0.00019565,2]
[331545226,1720477835340,-1000.0,0.00019724,2]
[331545227,1720477835349,-887.22900173,0.00019899,2]
[331545228,1720477835358,-281.95,0.00019906,2]
[331545229,1720477835367,-182.95576881,0.00019964,2]
[331545230,1720477835376,-548.0,0.00020642,2]
[331545231,1720477835385,-1125.55757183,0.00020642,2]
[331545232,1720477835407,-660.054,0.00020642,2]
[331545233,1720477835417,-387.0989336,0.00020642,2]
[331545234,1720477835434,-145.03549457,0.00020642,2]
[331545236,1720477835443,-2352.3699922,0.00020642,2]
[331545237,1720477835457,-711.6,0.00020642,2]
[331545238,1720477835470,-279.69657276,0.00020642,2]
[331545239,1720477835481,-1098.8377003,0.00020642,2]
[331545240,1720477835492,-522.58091288,0.00020642,2]
[331545241,1720477835503,-11627.07321666,0.00020642,2]
[331545242,1720477835515,-2502.5216052,0.00020642,2]
[331545243,1720477835525,-291.0,0.00020642,2]
[331545244,1720477835535,-1199.0,0.00020642,2]
[331545245,1720477835544,-678.05979847,0.00020642,2]
[331545246,1720477835560,-985.94020153,0.00020642,2]
[331545247,1720477835569,-225.43058031,0.00021,2]
[331545248,1720477835578,-150.4,0.00021065,2]
[331545249,1720477835587,-1000.0,0.00021068,2]
[331545250,1720477835597,-500.0,0.00021479,2]
[331545251,1720477835607,-159.31,0.00021505,2]
[331545252,1720477835617,-189.99,0.00021644,2]
[331545253,1720477835627,-152.93,0.00021644,2]
[331545254,1720477835637,-161.18,0.00021678,30]
[331545255,1720477835646,-491.61,0.00021918,2]
[331545256,1720477835656,-250.0,0.00021927,2]
[331545257,1720477835665,-188.35612588,0.00021989,2]
[331545258,1720477835675,-793.55353201,0.00022,2]
[331545259,1720477835684,-250.0,0.00022009,2]
[331545260,1720477835694,-6284.03762925,0.00022038,2]
[331545261,1720477835704,-1488.27565616,0.00022068,2]
[331545262,1720477835713,-3175.11825841,0.00022098,2]
[331545263,1720477835723,-2020.40384023,0.00022098,2]
[331545264,1720477835732,-250.0,0.00022168,2]
[331545265,1720477835742,-281.95,0.0002217,2]
[331545266,1720477835751,-868.44671232,0.00022199,2]
[331545267,1720477835761,-1277.40403744,0.00022199,2]
[331545268,1720477835770,-1277.40403744,0.00022199,2]
[331545269,1720477836228,-616.63744864,0.00022211,2]
[331545270,1720477836252,-717.16761484,0.00022222,2]
[331545271,1720477836263,-400.0,0.00022297,2]
[331545272,1720477836274,-500.0,0.00022309,2]
[331545273,1720477836283,-500.0,0.00022561,2]
[331545274,1720477836292,-366.10477922,0.00022973,2]
[331545275,1720477836302,-23900.0,0.00023065,2]
[331545276,1720477836311,-22161.028,0.000232,2]
[331545277,1720477836321,-1251.8,0.0002388,2]
[331545278,1720477836331,-1927.33599983,0.00023999,2]
[331545279,1720477836341,-180.0,0.00024213,2]
[331545280,1720477836351,-281.95,0.00024434,2]
[331545281,1720477836360,-3000.0,0.00024932,2]
[331545282,1720477836370,-1098.00563958,0.00024997,2]
[331545283,1720477836379,-155.0,0.00025,2]
[331545284,1720477836389,-225.60259739,0.00025,2]
[331545285,1720477836399,-1984.09775163,0.00025,2]
[331545286,1720477836408,-326.60332768,0.00025,2]
[331545287,1720477836418,-669.21960628,0.00025,30]
[331545288,1720477836428,-932.12365454,0.00025,2]
[331545289,1720477836438,-565.0,0.00025027,2]
[331545290,1720477836449,-400.0,0.00025084,2]
[331545291,1720477836459,-600.0,0.00025127,2]
[331545292,1720477836468,-1000.0,0.00025205,2]
[331545293,1720477836479,-294.6914,0.00025407,2]
[331545294,1720477836488,-169.93311326,0.00025507,2]
[331545295,1720477836498,-6745.48923063,0.00025539,2]
[331545296,1720477836507,-1000.0,0.000258,2]
[331545297,1720477836517,-150.0,0.00026079,2]
[331545298,1720477836527,-2500.0,0.000263,2]
[331545299,1720477836536,-1030.70594131,0.0002646,2]
[331545300,1720477836545,-281.95,0.00026698,2]
[331545301,1720477836554,-155.0,0.00027,2]
[331545302,1720477836564,-448.43744001,0.00027,2]
[331545303,1720477836573,-219.76612362,0.00027,2]
[331545304,1720477836582,-339.81835002,0.00027,7]
[331545305,1720477836592,-24661.40796821,0.00027,2]
[331545306,1720477836600,-550.93345898,0.00027,2]
[331545307,1720477836610,-155.0,0.00027,2]
[331545308,1720477836619,-883.15780805,0.00027,7]
[331545309,1720477836628,-3000.0,0.00027192,120]
[331545310,1720477836638,-7820.28,0.00027397,10]
[331545311,1720477836647,-2000.0,0.000274,120]
[331545312,1720477836656,-189.99,0.00027714,2]
[331545313,1720477836666,-400.0,0.00027872,2]
[331545314,1720477836675,-2000.0,0.00028,120]
[331545315,1720477836684,-1000.0,0.000282,2]
[331545316,1720477836694,-600.0,0.00028268,2]
[331545317,1720477836703,-1024.33595745,0.0002891,2]
[331545318,1720477836712,-500.0,0.00028942,120]
[331545319,1720477836721,-281.95,0.00028962,2]
[331545320,1720477836730,-2500.0,0.00029,2]
[331545321,1720477836739,-500.0,0.00029135,120]
[331545322,1720477836748,-1000.0,0.000292,2]
[331545323,1720477836757,-2000.0,0.0002921,2]
[331545324,1720477836766,-200.0,0.00029264,2]
[331545325,1720477836776,-3762.1038,0.000294,2]
[331545326,1720477836785,-3245.5692,0.000294,2]
[331545327,1720477836795,-219.6763,0.000294,2]
[331545328,1720477836804,-6497.7158,0.000294,2]
[331545329,1720477836812,-838.18,0.00029734,2]
[331545330,1720477836822,-854.69,0.00029734,2]
[331545331,1720477836831,-854.69,0.00029734,2]
[331545332,1720477836841,-854.69,0.00029734,2]
[331545333,1720477836850,-854.69,0.00029734,2]
[331545334,1720477836859,-505.2,0.00029734,2]
[331545335,1720477836868,-545.11825138,0.0003,30]
[331545336,1720477836877,-1000.0,0.0003,120]
[331545337,1720477836887,-689.64424061,0.0003,4]
[331545338,1720477836896,-159.31,0.00030106,2]
[331545339,1720477836905,-23092.0,0.00030117,2]
[331545340,1720477836914,-166.40976876,0.00030124,7]
[331545341,1720477836923,-200.0,0.00030137,60]
[331545342,1720477836932,-500.0,0.000303,120]
[331545343,1720477836942,-3000.0,0.000303,120]
[331545344,1720477836951,-579.89014123,0.00030309,7]
[331545345,1720477836961,-2057.31300372,0.00030331,7]
[331545346,1720477836971,-500.0,0.00030445,2]
[331545347,1720477836980,-200.0,0.00030445,2]
[331545348,1720477836990,-207.94758563,0.00030459,7]
[331545349,1720477836999,-790.83590279,0.00030484,7]
[331545350,1720477837009,-161.77787719,0.0003055,7]
[331545351,1720477837018,-1286.10937051,0.00030641,7]
[331545352,1720477837030,-400.0,0.00030659,2]
[331545353,1720477837040,-155.51654115,0.00030668,7]
[331545354,1720477837049,-384.97260535,0.00030681,7]
[331545355,1720477837059,-150.0,0.0003074,2]
[331545356,1720477837068,-151.070907,0.00030748,67]
[331545357,1720477837078,-151.070907,0.00030748,68]
[331545358,1720477837087,-151.070907,0.00030748,69]
[331545359,1720477837096,-151.070907,0.00030748,72]
[331545360,1720477837106,-150.0,0.00030762,2]
[331545361,1720477837115,-150.0,0.00030792,2]
[331545362,1720477837125,-150.0,0.00030837,2]
[331545363,1720477837134,-155.43804195,0.0003085,7]
[331545364,1720477837144,-493.60107678,0.00030855,7]
[331545365,1720477837157,-150.0,0.00030887,2]
[331545366,1720477837166,-500.0,0.000309,120]
[331545367,1720477837177,-534.98625594,0.00030917,4]
[331545368,1720477837187,-150.0,0.00030925,2]
[331545369,1720477837199,-150.0,0.00030938,2]
[331545370,1720477837208,-150.0,0.00030941,2]
[331545371,1720477837218,-1297.44020034,0.00030941,7]
[331545372,1720477837227,-166.66666666,0.0003098,7]
[331545373,1720477837239,-150.91802999,0.00030991,7]
[331545374,1720477837249,-150.0,0.00030999,2]
[331545375,1720477837260,-694.84774,0.00031,2]
[331545376,1720477837271,-1200.0,0.00031,2]
[331545377,1720477837281,-195.25148537,0.00031019,7]
[331545378,1720477837290,-150.0,0.00031024,2]
[331545379,1720477837299,-150.0,0.00031044,2]
[331545380,1720477837309,-161.11257916,0.0003105,7]
[331545381,1720477837318,-150.0,0.00031057,2]
[331545382,1720477837328,-150.0,0.00031058,2]
[331545383,1720477837338,-150.0,0.00031067,2]